bitfinex-derivatives/quotes_ETHF0:USTF0_20210405
["timestamp","ask_amount","ask_price","bid_price","bid_amount"]
[1617633599440,0.01386686,2116.6,2115.8,65.4122]
[1617633599640,2.36518449,2116.1,2115.8,65.4122]
[1617633599840,2.36518449,2116.1,2116.0,2.90695]
[1617633600242,2.36518449,2116.1,2116.0,8.78695]
[1617633600941,2.36518449,2116.1,2116.0,10.78695]
[1617633601143,2.36518449,2116.1,2116.0,13.02325]
[1617633601942,0.01387278,2116.6,2116.0,13.02325]
[1617633603043,0.01386945,2117.0,2116.0,13.02325]
[1617633603442,0.9382,2117.0,2116.0,13.02325]
[1617633603842,0.9382,2117.0,2116.9,2.90695]
[1617633604043,0.9066,2117.0,2116.9,7.48945]
[1617633604246,0.01386857,2117.2,2117.0,54.2268]
[1617633604644,0.01386857,2117.2,2117.1,5.66]
[1617633604846,2.90695,2117.4,2117.1,5.66]
[1617633605747,2.90695,2117.4,2117.3,2.90695]
[1617633606146,2.90695,2117.4,2117.3,8.65695]
[1617633606748,0.01386575,2117.6,2117.3,8.65695]
[1617633606946,0.01386522,2117.7,2117.3,8.65695]
[1617633607347,0.01386121,2117.8,2117.3,8.65695]
[1617633607748,2.90695,2117.8,2117.7,2.90695]
[1617633607948,2.90695,2117.8,2117.7,5.18125]
[1617633608149,2.90695,2117.8,2117.7,11.04125]
[1617633608651,2.92081102,2117.8,2117.7,11.04125]
[1617633608950,0.27722037,2118.2,2117.7,11.04125]
[1617633609151,0.05543853,2118.1,2117.7,11.04125]
[1617633609550,0.66526236,2118.6,2117.7,11.04125]
[1617633609551,0.27718755,2118.6,2117.7,11.04125]
[1617633609950,2.90695,2117.8,2117.7,11.04125]
[1617633611752,2.90695,2117.8,2117.7,5.86]
[1617633611955,5.62605,2117.8,2117.7,5.86]
[1617633612151,5.62605,2117.8,2116.8,5.73]
[1617633612352,5.62605,2117.8,2117.0,0.07]
[1617633612554,5.62605,2117.8,2117.7,5.83]
[1617633612753,5.62605,2117.8,2116.9,5.0]
[1617633612953,5.62605,2117.8,2117.1,0.04]
[1617633613152,5.62605,2117.8,2117.7,5.85]
[1617633613352,5.62605,2117.8,2116.3,5.88]
[1617633613353,5.62605,2117.8,2117.0,5.34]
[1617633613752,5.62605,2117.8,2117.7,5.09]
[1617633613953,0.27665573,2118.1,2117.1,5.81]
[1617633614354,0.27665573,2118.1,2117.7,4.91]
[1617633614555,0.27665573,2118.1,2116.5,5.81]
[1617633614755,0.27667112,2118.0,2117.2,5.85]
[1617633614958,0.27667112,2118.0,2117.8,4.64]
[1617633615157,1.22186149,2118.1,2117.8,4.64]
[1617633615357,1.22186149,2118.1,2117.3,5.68]
[1617633615557,0.27665348,2118.2,2117.9,4.41]
[1617633615958,2.90695,2118.0,2117.8,1.7304]
[1617633616158,2.90695,2118.0,2117.9,5.82]
[1617633617260,2.90695,2118.0,2117.3,5.82]
[1617633617460,2.90695,2118.0,2117.9,5.81]
[1617633617861,2.90695,2118.0,2117.3,5.75]
[1617633618061,2.90695,2118.0,2117.9,5.91]
[1617633618461,2.90695,2118.0,2117.3,5.78]
[1617633618661,2.90695,2118.0,2117.9,5.82]
[1617633619060,2.90695,2118.0,2117.3,5.89]
[1617633619261,2.90695,2118.0,2117.9,5.9]
[1617633619664,2.90695,2118.0,2117.3,5.67]
[1617633619861,2.90695,2117.4,2117.3,5.67]
[1617633620062,2.90695,2117.4,2117.2,2.90695]
[1617633620262,2.90695,2117.4,2117.3,5.82]
[1617633621062,1.22103957,2118.2,2117.3,8.0449]
[1617633621261,0.27643957,2118.2,2117.3,8.0449]
[1617633621562,2.63894421,2118.5,2117.3,8.0449]
[1617633621861,2.90695,2117.9,2117.8,2.90695]
[1617633622263,2.90695,2117.9,2117.8,8.76695]
[1617633623063,2.90695,2117.9,2117.8,5.86]
[1617633623464,2.90695,2117.9,2116.6,5.86]
[1617633623664,2.90695,2117.9,2116.7,2.0]
[1617633623864,0.9549,2118.0,2117.8,5.78]
[1617633624062,0.9549,2118.0,2117.3,2.90695]
[1617633624263,3.262,2118.0,2117.4,5.83]
[1617633624463,3.262,2118.0,2117.9,5.84]
[1617633624663,3.262,2118.0,2117.3,2.90695]
[1617633624865,3.262,2118.0,2117.5,5.83]
[1617633625064,3.262,2118.0,2117.9,5.83]
[1617633625265,0.9549,2118.0,2117.4,5.66]
[1617633625464,0.9549,2118.0,2117.6,5.84]
[1617633625663,0.9549,2118.0,2117.9,5.94]
[1617633625864,0.27625269,2118.5,2117.4,5.79]
[1617633626065,2.90695,2118.0,2117.7,5.78]
[1617633626465,2.90695,2118.0,2117.4,5.86]
[1617633626667,2.90695,2118.0,2117.8,5.71]
[1617633627064,2.90695,2118.0,2117.4,5.75]
[1617633627466,2.90695,2118.0,2117.9,5.91]
[1617633627664,2.90695,2118.0,2117.4,5.88]
[1617633627965,2.90695,2117.5,2117.3,2.90695]
[1617633628366,0.9317,2118.1,2117.4,5.73]
[1617633629969,2.90695,2117.5,2117.4,5.73]
[1617633630769,0.9317,2118.1,2117.4,5.73]
[1617633630969,0.27624215,2118.6,2117.4,5.73]
[1617633631369,0.44198744,2118.7,2117.4,5.73]
[1617633631370,0.2762268,2118.7,2117.4,5.73]
[1617633631771,2.571,2118.8,2117.4,5.73]
[1617633631970,2.571,2118.8,2117.8,2.90695]
[1617633632171,3.5213,2118.8,2117.8,2.90695]
[1617633632371,3.5213,2118.8,2117.9,5.76]
[1617633632770,3.79730029,2118.8,2117.9,5.76]
[1617633633174,3.5213,2118.8,2117.9,5.76]
[1617633633571,33.5213,2118.8,2117.9,5.76]
[1617633633775,3.5213,2118.8,2117.9,5.76]
[1617633633973,2.90695,2118.0,2117.9,5.76]
[1617633634776,2.90695,2118.0,2117.3,5.78]
[1617633634977,2.90695,2118.0,2117.3,7.78]
[1617633635176,2.90695,2118.0,2117.9,5.89]
[1617633635379,2.90695,2118.0,2117.5,2.2162]
[1617633635773,2.90695,2118.0,2117.9,5.89]
[1617633635974,2.90695,2118.0,2117.9,2.90695]
[1617633636375,2.90695,2118.0,2117.9,8.82695]
[1617633643781,2.90695,2118.0,2117.9,6.95105]
[1617633646184,0.9408,2118.2,2117.9,6.95105]
[1617633646385,2.571,2118.8,2118.0,2.0]
[1617633646584,2.571,2118.8,2118.6,56.2892]
[1617633646985,2.571,2118.8,2118.7,5.86]
[1617633647385,2.571,2118.8,2117.9,1.03105]
[1617633647386,2.571,2118.8,2118.5,5.73]
[1617633647785,2.571,2118.8,2117.9,1.03105]
[1617633647786,2.571,2118.8,2118.7,5.67]
[1617633647988,3.5219,2118.8,2118.6,5.77]
[1617633648187,6.42885,2118.8,2118.6,5.77]
[1617633648386,6.42885,2118.8,2118.7,5.75]
[1617633648589,6.42885,2118.8,2118.3,0.12]
[1617633648988,6.42885,2118.8,2118.7,5.68]
[1617633649187,6.42885,2118.8,2118.4,2.3372]
[1617633649590,6.42885,2118.8,2118.7,5.86]
[1617633649790,6.42885,2118.8,2118.5,5.87]
[1617633649991,6.42885,2118.8,2118.2,4.90695]
[1617633650190,6.42885,2118.8,2118.7,8.68695]
[1617633650391,5.47795,2118.8,2118.7,5.16475]
[1617633650791,5.47795,2118.8,2118.7,74.25195]
[1617633651293,5.47795,2118.8,2118.7,71.345]
[1617633651791,2.90695,2118.8,2118.7,71.345]
[1617633651992,2.90695,2118.8,2118.7,73.345]
[1617633652192,2.90695,2118.8,2118.7,76.25195]
[1617633654196,2.90695,2118.8,2118.7,62.25195]
[1617633654596,2.90695,2118.8,2118.7,68.13195]
[1617633654798,0.9334,2120.1,2118.7,68.13195]
[1617633654999,2.36065078,2120.2,2118.7,68.13195]
[1617633655398,2.36065078,2120.2,2118.7,10.78695]
[1617633655598,2.36065078,2120.2,2119.7,71.1779]
[1617633655798,2.36065078,2120.2,2119.8,2.0]
[1617633655997,2.36065078,2120.2,2119.8,7.78]
[1617633656199,2.36065078,2120.2,2120.1,2.90695]
[1617633656399,2.36065078,2120.2,2120.1,4.90695]
[1617633656599,2.36065078,2120.2,2120.1,10.61695]
[1617633656999,2.571,2120.6,2120.1,10.61695]
[1617633658100,2.571,2120.6,2120.5,2.90695]
[1617633658301,3.5057,2120.6,2120.5,2.90695]
[1617633658501,3.5057,2120.6,2120.5,8.68695]
[1617633659905,2.571,2120.6,2120.5,11.48415]
[1617633660715,2.571,2120.6,2120.5,13.48415]
[1617633661316,0.0001,2120.6,2120.5,13.48415]
[1617633661506,5.098,2121.9,2120.5,13.48415]
[1617633661713,0.9366,2122.1,2121.0,78.4991]
[1617633661920,0.9366,2122.1,2121.0,80.5494]
[1617633662118,0.9366,2122.1,2121.1,5.93]
[1617633662304,0.9366,2122.1,2121.6,2.90695]
[1617633662711,0.9366,2122.1,2121.7,5.73]
[1617633663806,0.9366,2122.1,2121.7,4.7685]
[1617633664009,2.571,2122.8,2121.7,4.7685]
[1617633664212,2.90695,2121.8,2121.7,4.7685]
[1617633665408,2.90695,2121.8,2121.7,6.7685]
[1617633666009,1.59575,2121.8,2121.7,6.7685]
[1617633666209,5.26548507,2122.1,2121.7,6.7685]
[1617633666410,5.26548507,2122.1,2121.7,9.4214]
[1617633666609,2.571,2122.8,2121.7,9.4214]
[1617633667809,2.571,2122.8,2121.7,6.7685]
[1617633668211,2.571,2122.8,2122.5,2.90695]
[1617633668610,2.571,2122.8,2122.6,5.86]
[1617633669813,2.571,2122.8,2122.6,7.86]
[1617633670411,2.571,2122.8,2122.6,5.86]
[1617633671115,3.5245,2122.8,2122.6,5.86]
[1617633672216,2.90695,2122.7,2122.6,5.456]
[1617633672416,5.15995,2122.7,2122.6,4.8634]
[1617633672616,5.15995,2122.7,2122.3,59.515]
[1617633672815,4.81020253,2122.7,2122.3,64.295]
[1617633673021,2.253,2122.7,2122.6,0.01]
[1617633673422,2.571,2122.8,2122.4,5.66]
[1617633673721,2.571,2122.8,2122.6,5.77]
[1617633674121,2.571,2122.8,2122.4,5.74]
[1617633674322,2.571,2122.8,2122.7,8.64695]
[1617633674722,2.571,2122.8,2122.7,2.90695]
[1617633674923,2.571,2122.8,2122.7,8.77695]
[1617633677224,2.571,2122.8,2122.7,10.99305]
[1617633677426,5.098,2123.8,2122.7,10.99305]
[1617633677625,0.2722546,2125.5,2122.7,10.99305]
[1617633677828,3.5174,2124.9,2123.3,54.6613]
[1617633678225,3.5174,2124.9,2123.9,2.90695]
[1617633678625,3.5174,2124.9,2124.0,5.87]
[1617633679025,0.02,2124.4,2124.0,5.87]
[1617633679927,0.02,2124.4,2124.0,5.2503]
[1617633680328,0.02,2124.4,2124.3,2.90695]
[1617633680726,0.02,2124.4,2124.3,5.88]
[1617633681129,0.02,2124.4,2123.4,5.91]
[1617633681528,0.02,2124.4,2124.3,5.89]
[1617633681729,0.02,2124.4,2123.4,5.66]
[1617633681928,0.02,2124.4,2124.3,5.66]
[1617633682330,0.02,2124.4,2123.7,2.90695]
[1617633682729,0.02,2124.4,2124.3,4.7137]
[1617633682929,0.02,2124.4,2123.8,5.78]
[1617633683130,0.02,2124.4,2123.7,2.90695]
[1617633683330,0.02,2124.4,2124.3,5.8]
[1617633683530,0.02,2124.4,2123.8,5.65]
[1617633683930,0.02,2124.4,2124.3,5.93]
[1617633684130,0.02,2124.4,2123.8,5.88]
[1617633684331,0.02,2124.4,2124.3,2.90695]
[1617633684531,0.02,2124.4,2124.3,8.62695]
[1617633684931,2.90695,2124.6,2123.4,5.84]
[1617633685131,2.90695,2124.6,2123.0,57.4732]
[1617633685132,1.31015604,2124.5,2124.3,5.79]
[1617633685531,1.31015604,2124.5,2123.5,5.81]
[1617633685932,1.31015604,2124.5,2124.4,5.81]
[1617633686132,1.31015604,2124.5,2123.6,5.7]
[1617633686334,1.31015604,2124.5,2124.1,2.90695]
[1617633686533,1.31015604,2124.5,2124.4,5.92]
[1617633686733,1.31015604,2124.5,2124.2,0.26]
[1617633686934,4.36485604,2124.5,2124.2,0.26]
[1617633687133,4.36485604,2124.5,2124.4,5.2887]
[1617633687335,4.36485604,2124.5,2122.6,54.9698]
[1617633687336,3.41505604,2124.5,2124.2,5.3002]
[1617633687534,3.41505604,2124.5,2124.2,4.5205]
[1617633687734,3.41505604,2124.5,2124.4,2.34]
[1617633687934,3.41505604,2124.5,2122.7,3.94]
[1617633688135,3.41505604,2124.5,2124.3,3.6508]
[1617633688336,2.90695,2124.4,2123.1,2.90695]
[1617633688734,2.90695,2124.4,2123.2,1.54]
[1617633689534,0.02,2124.3,2123.2,1.54]
[1617633689735,0.02,2124.3,2122.7,5.66]
[1617633690136,0.02,2124.3,2122.6,52.8821934]
[1617633690336,0.02,2124.3,2123.1,2.90695]
[1617633690736,0.02,2124.3,2123.2,4.4]
[1617633691638,0.02,2124.3,2123.2,3.8524]
[1617633691938,0.02,2124.3,2122.6,52.8821934]
[1617633692142,0.02,2124.3,2122.7,3.7419]
[1617633692338,0.02,2124.3,2123.3,5.78]
[1617633692538,0.02,2124.3,2122.6,2.90695]
[1617633692738,0.02,2124.3,2122.8,1.51]
[1617633692938,0.02,2124.3,2123.4,5.58]
[1617633693139,0.02,2124.3,2122.6,2.90695]
[1617633693338,0.02,2124.3,2122.9,4.93]
[1617633693538,0.02,2124.3,2122.8,0.02]
[1617633693739,0.02,2124.3,2122.7,0.76]
[1617633693938,0.02,2124.3,2123.0,5.76]
[1617633694138,0.02,2124.3,2122.9,5.74]
[1617633694339,0.02,2124.3,2123.0,2.90695]
[1617633694540,0.02,2124.3,2123.1,5.74]
[1617633694741,0.02,2124.3,2123.0,8.54695]
[1617633694940,0.02,2124.3,2123.0,2.90695]
[1617633695141,2.35661195,2123.8,2123.1,5.79]
[1617633695341,5.05971195,2123.8,2123.1,5.79]
[1617633695541,5.05971195,2123.8,2122.4,5.8]
[1617633695941,5.05971195,2123.8,2123.2,5.5023]
[1617633696141,5.05971195,2123.8,2122.4,5.81]
[1617633696341,6.00831195,2123.8,2122.5,2.90695]
[1617633696540,3.6517,2123.8,2123.3,5.74]
[1617633696741,3.6517,2123.8,2122.6,1.4]
[1617633697141,30.0,2123.7,2123.4,5.74]
[1617633697341,30.0,2123.7,2122.6,5.86]
[1617633697743,30.0,2123.7,2123.5,5.69]
[1617633697943,30.0,2123.7,2122.7,5.8]
[1617633698343,30.0,2123.7,2123.6,5.199]
[1617633698743,30.0,2123.7,2122.8,5.93]
[1617633698944,0.9486,2123.8,2123.6,1.4919]
[1617633699343,0.9486,2123.8,2122.9,5.86]
[1617633699543,0.9486,2123.8,2123.7,5.87]
[1617633699944,0.9486,2123.8,2123.0,4.39]
[1617633700144,0.9486,2123.8,2123.7,5.65]
[1617633700346,3.85555,2123.8,2121.3,2.90695]
[1617633700544,3.85555,2123.8,2120.8,74.6019]
[1617633700545,30.0,2123.7,2120.8,74.6019]
[1617633700944,30.0,2123.7,2120.8,73.6549]
[1617633701145,30.0,2123.7,2120.9,5.7826]
[1617633702147,30.0,2123.7,2120.9,7.8182]
[1617633702346,30.0,2123.7,2122.0,2.90695]
[1617633702746,30.0,2123.7,2122.1,5.87]
[1617633703548,30.0,2123.6,2122.1,5.87]
[1617633704347,2.90695,2122.2,2122.1,5.87]
[1617633705148,2.90695,2122.2,2121.0,5.71]
[1617633705552,2.90695,2122.2,2122.1,5.79]
[1617633705750,2.90695,2122.2,2121.1,5.92]
[1617633706150,2.90695,2122.2,2122.1,5.81]
[1617633706350,2.90695,2122.2,2121.3,2.90695]
[1617633706751,2.90695,2122.2,2122.1,5.84]
[1617633706951,2.90695,2122.2,2121.4,0.48]
[1617633707154,2.90695,2122.2,2121.3,2.90695]
[1617633707351,2.90695,2122.2,2122.1,5.65]
[1617633707552,2.90695,2122.2,2121.4,5.83]
[1617633707752,2.90695,2122.2,2121.3,2.90695]
[1617633708153,2.90695,2122.2,2121.4,5.9]
[1617633708352,2.90695,2122.2,2122.1,2.90695]
[1617633708753,2.90695,2122.2,2122.1,8.59695]
[1617633709554,0.9547,2123.4,2122.1,8.59695]
[1617633709756,30.0,2123.9,2122.1,8.59695]
[1617633709955,30.0,2124.1,2122.1,8.59695]
[1617633710158,30.0,2124.1,2122.1,67.28885]
[1617633710356,30.0,2124.1,2123.3,2.90695]
[1617633710556,1.29015604,2124.5,2123.3,2.90695]
[1617633710758,1.29015604,2124.5,2123.4,5.93]
[1617633711156,1.29015604,2124.5,2123.4,5.8254]
[1617633712357,2.90695,2123.5,2123.4,5.8254]
[1617633713060,2.90695,2123.5,2123.4,3.46780253]
[1617633713861,2.90695,2123.5,2123.4,3.24220253]
[1617633714260,2.90695,2123.5,2123.4,2.65900253]
[1617633714961,3.04610549,2123.5,2123.4,2.10238057]
[1617633715164,2.90695,2123.5,2123.4,2.10238057]
[1617633715574,1.29015604,2124.5,2123.4,2.10238057]
[1617633715775,1.29015604,2124.5,2123.4,4.48168057]
[1617633716567,1.29015604,2124.5,2123.7,2.90695]
[1617633716972,1.29015604,2124.5,2123.7,8.61695]
[1617633718166,1.29015604,2124.5,2123.7,5.71]
[1617633718368,2.90695,2123.8,2123.7,5.0026]
[1617633718566,3.84345,2123.8,2122.8,2.90695]
[1617633718967,3.84345,2123.8,2123.7,5.85]
[1617633719167,3.84345,2123.8,2122.8,2.90695]
[1617633719367,14.0,2123.7,2122.8,2.90695]
[1617633719567,14.0,2123.7,2123.0,5.66]
[1617633719766,14.0,2123.7,2122.9,5.69]
[1617633719968,14.0,2123.7,2122.8,2.90695]
[1617633720167,14.0,2123.7,2123.1,5.73]
[1617633720369,14.0,2123.7,2122.9,5.86]
[1617633720568,2.90695,2123.2,2122.8,2.90695]
[1617633720969,2.90695,2123.2,2122.9,5.65]
[1617633722368,0.929,2123.3,2123.1,2.90695]
[1617633722768,14.0,2123.7,2123.2,5.16]
[1617633723571,2.35681429,2123.6,2123.2,5.16]
[1617633723971,2.35681429,2123.6,2123.2,7.16]
[1617633724373,1.3499,2123.7,2123.2,7.16]
[1617633724570,1.29015604,2124.5,2123.5,2.90695]
[1617633724772,1.29015604,2124.5,2123.6,2.0]
[1617633724969,1.29015604,2124.5,2123.6,10.2846]
[1617633725872,1.29015604,2124.5,2124.0,73.2892]
[1617633726070,1.29015604,2124.5,2124.1,2.0]
[1617633726271,1.29015604,2124.5,2124.1,7.72]
[1617633726470,1.29015604,2124.5,2124.4,2.90695]
[1617633726869,1.29015604,2124.5,2124.4,8.63695]
[1617633728277,1.29015604,2124.5,2124.4,10.63695]
[1617633729373,1.29015604,2124.5,2124.4,8.63695]
[1617633729574,1.29015604,2124.5,2124.4,5.73]
[1617633729974,1.29015604,2124.5,2123.0,5.9]
[1617633730173,3.05755604,2124.5,2123.0,5.9]
[1617633730373,3.05755604,2124.5,2124.4,5.84]
[1617633730573,5.96450604,2124.5,2123.9,2.90695]
[1617633730976,5.96450604,2124.5,2124.4,5.71]
[1617633731174,5.96450604,2124.5,2124.0,5.81]
[1617633731377,4.19710604,2124.5,2123.9,2.90695]
[1617633731575,4.19710604,2124.5,2124.4,5.88]
[1617633731775,4.19710604,2124.5,2124.0,5.7]
[1617633732175,4.19710604,2124.5,2124.4,5.71]
[1617633732376,4.19710604,2124.5,2123.9,2.90695]
[1617633732575,4.19710604,2124.5,2124.3,2.90695]
[1617633732776,4.19710604,2124.5,2124.4,5.91]
[1617633732979,4.19710604,2124.5,2124.3,2.90695]
[1617633733177,4.19710604,2124.5,2123.0,5.79]
[1617633733377,5.12720604,2124.5,2124.4,5.75]
[1617633733580,4.19710604,2124.5,2123.0,5.76]
[1617633733980,4.19710604,2124.5,2124.4,5.73]
[1617633734179,4.19710604,2124.5,2123.0,5.66]
[1617633734578,4.19710604,2124.5,2122.9,57.4389]
[1617633734579,2.22705604,2124.5,2124.4,5.87]
[1617633734779,2.22705604,2124.5,2123.6,2.90695]
[1617633734780,2.50155086,2124.5,2123.6,2.90695]
[1617633734979,2.64064013,2124.5,2123.7,5.74]
[1617633735178,0.13908952,2124.4,2123.7,5.18364191]
[1617633735378,2.50155086,2124.5,2123.7,5.18364191]
[1617633736582,2.90695,2123.8,2123.7,5.18364191]
[1617633736788,5.57765,2123.8,2123.7,5.18364191]
[1617633738385,0.27453487,2124.3,2123.7,5.18364191]
[1617633738585,1.94892121,2124.5,2123.7,7.18364191]
[1617633738784,0.87835356,2124.7,2124.2,63.7761]
[1617633738985,0.87805594,2125.7,2124.2,68.0591]
[1617633739186,0.87805594,2125.7,2124.3,5.77]
[1617633739385,0.8779563,2126.3,2124.3,7.77]
[1617633739786,2.90695,2126.4,2124.3,7.77]
[1617633740585,2.90695,2125.8,2125.7,2.90695]
[1617633740786,2.90695,2125.8,2124.3,7.77]
[1617633740987,2.90695,2125.8,2125.7,5.74]
[1617633741187,0.9458,2126.3,2125.7,5.74]
[1617633741389,0.9458,2126.3,2124.4,5.91]
[1617633741589,0.9458,2126.3,2125.8,5.83]
[1617633741987,0.9458,2126.3,2124.5,5.75]
[1617633742187,0.9458,2126.3,2125.9,5.86]
[1617633742387,0.9458,2126.3,2125.9,3.50374326]
[1617633742587,2.90695,2126.0,2124.6,5.71]
[1617633742789,30.0,2125.9,2124.6,5.71]
[1617633742987,32.7898,2125.9,2123.8,2.90695]
[1617633743189,32.7898,2125.9,2122.7,67.1781]
[1617633743190,32.7898,2125.9,2124.7,5.74]
[1617633743392,32.7898,2125.9,2124.7,5.0303]
[1617633743593,32.7898,2125.9,2122.8,2.24]
[1617633743793,32.7898,2125.9,2124.8,5.54]
[1617633744198,32.7898,2125.9,2124.5,5.64]
[1617633744199,32.7898,2125.9,2122.9,5.64]
[1617633744400,32.7898,2125.9,2124.9,5.68]
[1617633744600,2.90695,2125.0,2124.9,5.68]
[1617633744800,34.95515,2125.0,2123.6,2.90695]
[1617633745001,4.95515,2125.0,2124.9,5.91]
[1617633745401,4.95515,2125.0,2123.7,1.18]
[1617633745604,34.95515,2125.0,2124.9,5.79]
[1617633745801,4.95515,2125.0,2124.9,5.79]
[1617633746001,4.95515,2125.0,2123.8,1.99]
[1617633746201,4.95515,2125.0,2124.9,5.75]
[1617633746603,4.95515,2125.0,2123.9,5.76]
[1617633746802,4.95515,2125.0,2123.8,5.92]
[1617633747004,4.95515,2125.0,2124.9,5.76]
[1617633747204,4.95515,2125.0,2124.0,5.41]
[1617633747403,4.95515,2125.0,2123.9,5.89]
[1617633747603,4.95515,2125.0,2124.9,5.64]
[1617633747803,4.95515,2125.0,2124.1,4.98]
[1617633748003,4.95515,2125.0,2124.0,5.4]
[1617633748203,4.95515,2125.0,2124.9,4.98]
[1617633748403,4.95515,2125.0,2124.2,4.72]
[1617633748603,0.9402,2125.2,2124.1,5.75]
[1617633748804,0.9402,2125.2,2124.9,0.2]
[1617633749002,0.9402,2125.2,2124.0,4.06]
[1617633749204,0.9402,2125.2,2124.2,4.59]
[1617633749402,0.9402,2125.2,2125.0,0.31]
[1617633749605,0.9402,2125.2,2124.1,66.5457]
[1617633749804,3.2531,2125.2,2124.2,5.66]
[1617633750005,3.2531,2125.2,2117.7,5.52556321]
[1617633750006,30.0,2125.1,2122.8,2.0]
[1617633750406,30.0,2125.1,2124.3,5.91]
[1617633750609,2.90695,2124.4,2124.2,5.7]
[1617633750809,5.53935,2124.4,2123.6,2.90695]
[1617633751007,5.53935,2124.4,2124.3,5.76]
[1617633751406,5.53935,2124.4,2124.2,5.84]
[1617633751608,5.53935,2124.4,2123.6,2.90695]
[1617633751609,5.53935,2124.4,2124.3,5.82]
[1617633751807,2.90695,2124.4,2124.3,5.82]
[1617633752008,2.90695,2124.4,2123.7,5.89]
[1617633752209,2.90695,2124.4,2124.3,5.85]
[1617633752608,2.90695,2124.4,2123.6,2.90695]
[1617633752807,2.90695,2124.4,2123.8,5.73]
[1617633753008,0.9402,2125.2,2124.3,5.23]
[1617633753409,0.9402,2125.2,2123.6,2.90695]
[1617633753612,0.9402,2125.2,2123.8,5.71]
[1617633753808,0.9402,2125.2,2124.1,5.67]
[1617633754208,0.9402,2125.2,2124.0,1.97]
[1617633754409,0.9402,2125.2,2124.2,5.69]
[1617633754609,2.90695,2124.3,2124.2,5.69]
[1617633754811,2.90695,2124.3,2124.1,2.58]
[1617633755009,2.90695,2124.3,2124.2,5.74]
[1617633755408,2.90695,2124.3,2123.9,2.90695]
[1617633755609,2.90695,2124.3,2124.2,5.84]
[1617633755812,2.90695,2124.3,2124.2,7.84]
[1617633756010,2.90695,2124.3,2124.0,5.79]
[1617633756210,2.90695,2124.3,2124.2,5.79]
[1617633756611,2.90695,2124.3,2124.0,5.66]
[1617633756810,2.90695,2124.3,2124.2,5.68]
[1617633757211,2.90695,2124.3,2124.0,5.91]
[1617633757513,2.90695,2124.3,2124.2,5.81]
[1617633757912,2.90695,2124.3,2124.0,5.73]
[1617633758114,2.90695,2124.3,2124.2,5.92]
[1617633758313,0.9402,2125.2,2124.2,5.92]
[1617633758513,0.9402,2125.2,2124.0,5.77]
[1617633758713,2.90695,2124.2,2123.9,2.90695]
[1617633759114,2.90695,2124.2,2124.0,5.91]
[1617633759415,2.90695,2124.2,2124.1,2.0]
[1617633759814,2.90695,2124.2,2124.1,7.66]
[1617633760116,2.35569041,2124.6,2124.1,7.66]
[1617633760315,2.35569041,2124.6,2124.1,5.66]
[1617633760515,3.28969041,2124.6,2124.1,5.66]
[1617633760715,2.90695,2124.2,2124.0,5.91]
[1617633761115,2.90695,2124.2,2123.7,0.63]
[1617633761314,2.90695,2124.2,2124.1,5.86]
[1617633761714,2.90695,2124.2,2123.8,5.78]
[1617633761915,2.90695,2124.2,2124.1,5.72]
[1617633762315,2.90695,2124.2,2123.9,5.53]
[1617633762515,2.90695,2124.2,2124.1,5.8]
[1617633762717,2.90695,2124.2,2124.1,8.70695]
[1617633762915,0.9402,2125.2,2124.1,2.90695]
[1617633763115,0.9402,2125.2,2124.1,5.64]
[1617633763515,0.9602,2125.2,2123.5,57.363]
[1617633763715,3.5667,2125.2,2123.7,5.68]
[1617633763915,3.5667,2125.2,2124.2,5.82]
[1617633764117,30.0,2125.1,2123.6,5.69]
[1617633764316,30.0,2125.1,2123.8,5.76]
[1617633764516,30.0,2125.1,2124.3,5.73]
[1617633764718,0.83446995,2125.0,2123.9,2.90695]
[1617633764917,0.83446995,2125.0,2123.9,8.54695]
[1617633765118,0.9402,2125.2,2124.4,5.65]
[1617633765319,0.9402,2125.2,2123.9,2.90695]
[1617633765517,0.9402,2125.2,2124.0,5.84]
[1617633765719,0.9602,2125.2,2124.5,5.64]
[1617633765918,0.9602,2125.2,2123.9,2.90695]
[1617633766118,0.9402,2125.2,2124.1,5.83]
[1617633766319,8.24,2124.2,2124.1,5.83]
[1617633766520,8.24,2124.2,2123.9,2.90695]
[1617633766719,8.24,2124.2,2124.1,5.86]
[1617633767119,8.24,2124.2,2123.7,0.1]
[1617633767319,8.24,2124.2,2124.1,5.76]
[1617633767719,8.24,2124.2,2123.6,2.90695]
[1617633767720,8.24,2124.2,2123.8,5.86]
[1617633767921,8.24,2124.2,2124.1,5.88]
[1617633768319,8.24,2124.2,2123.6,2.90695]
[1617633768320,8.24,2124.2,2123.9,5.8]
[1617633768520,8.24,2124.2,2124.1,5.12]
[1617633768721,8.24,2124.2,2124.1,8.02695]
[1617633768922,8.24,2124.2,2124.1,2.90695]
[1617633769222,8.24,2124.2,2124.1,4.62]
[1617633769621,8.24,2124.2,2123.6,70.5269]